bitfinex-derivatives/quotes_BNBF0:USTF0_20250116
["timestamp","ask_amount","ask_price","bid_price","bid_amount"]
[1737039549615,1.03452692,703.72,701.69,0.26164652]
[1737039549815,1.03452692,703.72,701.7,0.26164652]
[1737039550012,1.03452692,703.72,701.71,0.26164652]
[1737039550319,1.03452692,703.89,701.72,0.26164652]
[1737039550519,1.03452692,703.89,701.73,0.26164652]
[1737039550719,1.03452692,703.89,701.74,0.26164652]
[1737039551018,1.03452692,703.89,701.75,0.26164652]
[1737039551216,1.03452692,703.89,701.76,0.26158281]
[1737039551419,1.48569802,703.88,701.77,0.26158281]
[1737039551619,1.48569802,703.88,701.78,0.26158281]
[1737039551815,1.48569802,703.88,701.62,0.28505458]
[1737039551816,1.48569802,703.88,701.63,0.26158281]
[1737039552019,1.48569802,703.88,701.64,0.26158281]
[1737039552220,1.48569802,703.88,701.63,0.26158281]
[1737039552422,1.03452692,703.87,701.64,0.26158281]
[1737039552618,1.03452692,703.87,701.65,0.26158281]
[1737039552819,1.03452692,703.87,701.66,0.26158281]
[1737039553022,1.03452692,703.87,701.67,0.26158281]
[1737039553216,1.03452692,703.87,701.68,0.26158281]
[1737039553418,2.52022494,703.88,701.63,0.26158281]
[1737039553623,2.52022494,703.88,701.64,0.26158281]
[1737039553823,2.52022494,703.88,701.62,0.28505458]
[1737039554019,2.52022494,703.88,701.63,0.26157767]
[1737039554423,1.03452692,703.87,701.63,0.26157767]
[1737039555525,1.03452692,703.8,701.63,0.26157767]
[1737039556426,1.03452692,703.82,701.63,0.26157767]
[1737039556823,1.03452692,703.82,701.64,0.26163966]
[1737039557023,1.03452692,703.82,701.65,0.26163966]
[1737039557229,1.03452692,703.82,701.66,0.26163966]
[1737039557430,1.03452692,703.82,701.67,0.26163966]
[1737039557630,1.03452692,703.74,701.68,0.26163966]
[1737039557827,1.03452692,703.74,701.69,0.26163966]
[1737039558026,1.03452692,703.74,701.7,0.26163966]
[1737039558230,1.03452692,703.74,701.71,0.26163966]
[1737039558430,1.03452692,703.74,701.72,0.26163966]
[1737039558731,1.03452692,703.69,701.73,0.26163966]
[1737039558930,1.03452692,703.69,701.74,0.26163966]
[1737039559127,1.03452692,703.69,701.75,0.26163966]
[1737039559333,1.03452692,703.69,701.76,0.26163966]
[1737039559627,1.03452692,703.71,701.77,0.26164395]
[1737039559831,1.03452692,703.71,701.63,0.26164395]
[1737039560134,0.28424837,703.61,701.64,0.26164395]
[1737039560335,0.28424837,703.61,701.65,0.26164395]
[1737039560538,0.28424837,703.61,701.66,0.26164395]
[1737039560836,0.28424837,703.61,701.67,0.26164395]
[1737039561030,0.28424837,703.61,701.68,0.26164395]
[1737039561236,0.28424837,703.61,701.69,0.26164395]
[1737039561436,0.28424837,703.61,701.7,0.26164395]
[1737039561738,0.28424837,703.61,701.71,0.26164395]
[1737039561931,0.28424837,703.61,701.72,0.26164395]
[1737039562137,0.28424837,703.61,701.73,0.26164395]
[1737039562338,0.28424837,703.61,701.63,0.26164293]
[1737039562938,0.28424837,703.61,701.64,0.26165921]
[1737039563138,0.28424837,703.61,701.63,0.26165921]
[1737039563338,0.28424837,703.61,701.64,0.26165921]
[1737039563533,0.28424837,703.61,701.65,0.26165921]
[1737039563737,0.28424837,703.61,701.66,0.26165921]
[1737039563939,0.28424837,703.61,701.62,0.28505458]
[1737039563940,0.28424837,703.61,701.67,0.26165921]
[1737039564140,0.28424837,703.61,701.68,0.26165921]
[1737039564141,1.03452692,703.58,701.68,0.26165921]
[1737039564340,1.03452692,703.58,701.69,0.26165921]
[1737039564537,1.03452692,703.58,701.7,0.26165921]
[1737039564742,1.03452692,703.58,701.71,0.26165921]
[1737039565051,1.03452692,703.58,701.72,0.26165272]
[1737039565342,1.03452692,703.42,701.73,0.26165272]
[1737039565535,1.03452692,703.42,701.74,0.26165272]
[1737039565735,1.03452692,703.42,701.75,0.26165272]
[1737039565940,1.03452692,703.42,701.76,0.26165272]
[1737039566141,1.03452692,703.42,701.66,0.87205467]
[1737039566341,1.03452692,703.39,701.67,0.87205467]
[1737039566642,1.03452692,703.39,701.68,0.87205467]
[1737039566843,1.03452692,703.39,701.69,0.87205467]
[1737039567144,1.03452692,703.39,701.7,0.87205467]
[1737039567343,1.03452692,703.39,701.71,0.87205467]
[1737039567542,1.03452692,703.32,701.72,0.87205467]
[1737039567745,1.03452692,703.32,701.73,0.61042822]
[1737039568044,1.03452692,703.32,701.74,0.26166573]
[1737039568246,1.03452692,703.32,701.75,0.26166573]
[1737039568446,1.03452692,703.32,701.76,0.26166573]
[1737039568643,1.03452692,703.28,701.77,0.26166573]
[1737039568839,1.03452692,703.28,701.78,0.26166573]
[1737039569046,1.03452692,703.28,701.64,0.26166573]
[1737039569247,1.03452692,703.28,701.65,0.26166573]
[1737039569548,1.03452692,703.28,701.66,0.26166573]
[1737039569748,1.03452692,703.3,701.67,0.26166573]
[1737039569941,1.03452692,703.3,701.68,0.26166573]
[1737039570146,1.03452692,703.3,701.69,0.26166573]
[1737039570442,1.03452692,703.3,701.66,1.049928]
[1737039570647,1.03452692,703.3,701.67,0.26165663]
[1737039570847,1.03452692,703.26,701.71,1.049928]
[1737039571047,1.03452692,703.26,701.72,0.26165663]
[1737039571242,1.03452692,703.26,701.71,1.049928]
[1737039571447,1.03452692,703.26,701.72,0.26165069]
[1737039572047,1.03452692,703.25,701.76,1.049928]
[1737039572247,1.03452692,703.25,701.77,0.26165069]
[1737039572648,1.03452692,703.19,701.77,0.26165069]
[1737039572844,1.03452692,703.19,701.78,0.26165069]
[1737039573047,1.03452692,703.19,701.79,0.26165069]
[1737039573250,1.03452692,703.19,701.71,1.049928]
[1737039573553,1.03452692,703.13,701.72,1.31160798]
[1737039573755,1.03452692,703.13,701.73,0.26167998]
[1737039574149,1.48624265,703.36,701.73,0.26167998]
[1737039574353,1.48624265,703.36,701.63,0.26167998]
[1737039574552,1.48624265,703.36,701.64,0.26167998]
[1737039574854,1.48624265,703.36,701.65,0.26167998]
[1737039575149,1.04229869,703.09,701.74,1.06400077]
[1737039575353,1.04229869,703.09,701.75,0.26167998]
[1737039576655,1.48624265,703.36,701.75,0.26167998]
[1737039576656,1.04229869,703.1,701.77,1.06400077]
[1737039576855,1.04229869,703.1,701.78,0.26167998]
[1737039577254,0.2844586,703.09,701.77,1.06400077]
[1737039577555,0.2844586,703.09,701.78,0.26167625]
[1737039578256,0.2844586,703.09,701.75,1.06400077]
[1737039578257,0.2844586,703.09,701.79,0.26167625]
[1737039578450,0.2844586,703.09,701.8,0.26167625]
[1737039578655,0.2844586,703.09,701.81,0.26167625]
[1737039578858,1.04229869,703.05,701.76,0.26167625]
[1737039579050,1.04229869,703.05,701.77,0.26167625]
[1737039579253,1.04229869,703.05,701.78,0.26167625]
[1737039579451,1.04229869,703.05,701.75,1.06400077]
[1737039579654,1.04229869,703.05,701.76,0.26169176]
[1737039579850,1.04229869,703.06,701.76,0.26169176]
[1737039580054,1.04229869,703.06,701.77,0.26169176]
[1737039580255,1.04229869,703.06,701.78,0.26169176]
[1737039580458,1.04229869,703.06,701.79,0.26169176]
[1737039580761,1.04229869,703.06,701.8,0.26169176]
[1737039581061,1.04229869,703.05,701.81,0.26169176]
[1737039581255,1.04229869,703.05,701.82,0.26169176]
[1737039581459,1.04229869,703.05,701.83,0.26169176]
[1737039581659,1.04229869,703.05,701.74,0.26169176]
[1737039581859,1.04229869,703.05,701.75,0.26169176]
[1737039582056,1.04229869,703.05,701.76,0.26169176]
[1737039582262,1.04229869,703.06,701.77,0.26169176]
[1737039582454,1.04229869,703.06,701.78,0.26169176]
[1737039582655,1.04229869,703.06,701.79,0.26169176]
[1737039582859,1.04229869,703.06,701.8,0.26169176]
[1737039583063,1.04229869,703.06,701.81,0.26169176]
[1737039583262,1.04229869,703.06,701.82,0.26169176]
[1737039583562,0.2844586,703.09,701.83,0.26169176]
[1737039583563,1.04229869,703.07,701.83,0.26169176]
[1737039583762,1.04229869,703.07,701.84,0.26169176]
[1737039583962,1.04229869,703.07,701.85,0.26169176]
[1737039584159,1.04229869,703.07,701.86,0.26169176]
[1737039584361,1.04229869,703.07,701.87,0.26165172]
[1737039584562,0.2844586,703.09,701.88,0.26165172]
[1737039584856,0.2844586,703.09,701.89,0.26165172]
[1737039585061,0.2844586,703.09,701.9,0.26165172]
[1737039585262,0.2844586,703.09,701.91,0.26165172]
[1737039585463,0.2844586,703.09,701.92,0.26165172]
[1737039585764,0.2844586,703.09,701.93,0.26165172]
[1737039585963,0.2844586,703.09,701.94,0.26165172]
[1737039586165,0.2844586,703.09,701.95,0.26165172]
[1737039586369,0.2844586,703.09,701.96,0.26165172]
[1737039586760,0.2844586,703.09,701.97,0.26165172]
[1737039586965,0.2844586,703.09,701.98,0.26165172]
[1737039587167,0.2844586,703.09,702.08,1.06400077]
[1737039587363,0.2844586,703.09,702.09,0.26153985]
[1737039588363,0.2844586,703.09,702.1,0.26153985]
[1737039588559,0.2844586,703.09,702.11,0.26153985]
[1737039588760,0.2844586,703.09,702.12,0.26153985]
[1737039588965,0.2844586,703.09,702.13,0.26153985]
[1737039589168,0.2844586,703.09,702.14,0.26153985]
[1737039589369,0.2844586,703.09,702.15,0.26153985]
[1737039589565,0.2844586,703.09,702.04,1.06400077]
[1737039589566,0.2844586,703.09,702.16,0.26153985]
[1737039589868,0.2844586,703.09,702.04,1.06400077]
[1737039590065,0.2844586,703.09,702.05,0.26155564]
[1737039590264,0.2844586,703.09,702.04,1.06400077]
[1737039591161,0.2844586,703.09,701.82,1.06400077]
[1737039591468,0.2844586,703.09,701.83,0.26161465]
[1737039592865,0.2844586,703.09,701.82,0.26161465]
[1737039593167,0.2844586,703.09,701.83,0.26161465]
[1737039593368,0.2844586,703.09,701.84,0.26161465]
[1737039593566,0.2844586,703.09,701.85,0.26161465]
[1737039593766,0.2844586,703.09,701.62,0.28505458]
[1737039593767,0.2844586,703.09,701.86,0.26161465]
[1737039594071,0.2844586,703.09,701.87,0.26161465]
[1737039594266,0.2844586,703.09,701.88,0.26161465]
[1737039594466,0.2844586,703.09,701.89,0.26161465]
[1737039594666,0.2844586,703.09,701.9,0.26161465]
[1737039594868,0.2844586,703.09,701.91,0.26161465]
[1737039595064,0.2844586,703.09,701.7,1.06400077]
[1737039595260,0.2844586,703.09,701.71,0.2616654]
[1737039595471,0.2844586,703.09,701.7,1.06400077]
[1737039595769,0.2844586,703.09,701.62,0.28505458]
[1737039595970,0.2844586,703.09,701.63,0.26168192]
[1737039596270,0.2844586,703.09,701.64,0.26167825]
[1737039596466,0.2844586,703.09,701.65,0.26167825]
[1737039596768,0.2844586,703.09,701.66,0.26167825]
[1737039597071,0.2844586,703.09,701.67,0.26167825]
[1737039597366,0.2844586,703.09,701.62,0.28505458]
[1737039597568,0.2844586,703.09,701.63,0.26168061]
[1737039598165,0.2844586,703.09,701.62,0.28505458]
[1737039601173,0.2844586,703.09,701.63,0.26172621]
[1737039602673,0.2844586,703.09,701.62,0.28505458]
[1737039603977,1.04229869,702.97,701.62,0.28505458]
[1737039604275,0.2845112,702.96,701.63,0.26177094]
[1737039604468,0.2845112,702.96,701.62,0.28505458]
[1737039605073,0.2845112,702.96,701.34,1.06400077]
[1737039605278,0.2845112,702.96,701.35,0.2617747]
[1737039605675,0.2845112,702.96,701.34,1.06400077]
[1737039605872,0.2845112,702.96,700.83,1.27680092]
[1737039605873,0.2845112,702.96,701.35,0.261756]
[1737039606075,0.2845112,702.96,701.36,0.261756]
[1737039606273,0.2845112,702.96,701.18,0.261756]
[1737039606477,0.2845112,702.96,701.18,2.37470516]
[1737039606676,0.2845112,702.96,701.19,0.87237519]
[1737039606878,0.2845112,702.96,701.19,1.15760458]
[1737039607179,0.2845112,702.96,701.2,0.87237519]
[1737039607778,0.2845112,702.96,701.28,1.06400077]
[1737039607978,0.2845112,702.96,701.29,0.261756]
[1737039608277,0.2845112,702.96,701.3,0.261756]
[1737039608477,0.2845112,702.96,701.31,0.26178316]
[1737039608678,0.2845112,702.96,701.32,0.26178316]
[1737039608878,0.2845112,702.96,701.33,0.26178316]
[1737039609079,0.2845112,702.96,701.31,0.8724515]
[1737039609380,0.2845112,702.96,701.32,0.8724515]
[1737039609580,0.2845112,702.96,701.33,0.8724515]
[1737039609879,0.2845112,702.96,701.34,0.87235321]
[1737039610074,0.2845112,702.96,701.35,0.26175038]
[1737039610275,0.2845112,702.96,701.36,0.26175038]
[1737039610580,0.2845112,702.96,701.37,0.26175038]
[1737039610780,0.2845112,702.96,701.38,0.26175038]
[1737039610979,0.2845112,702.96,701.39,0.26175038]
[1737039611180,0.2845112,702.96,701.4,0.26174811]
[1737039611373,0.2845112,702.96,701.19,0.28522939]
[1737039611374,0.2845112,702.96,701.32,1.06400077]
[1737039611574,0.2845112,702.96,701.33,0.26174811]
[1737039611978,0.2845112,702.96,701.34,0.26177979]
[1737039612175,0.2845112,702.96,701.33,0.26177979]
[1737039612380,0.2845112,702.96,701.34,0.26177979]
[1737039612576,0.2845112,702.96,701.2,0.26177979]
[1737039614079,0.2845112,702.96,701.21,0.26173916]
[1737039614283,0.2845112,702.96,701.2,0.26173916]
[1737039614482,0.2845112,702.96,701.22,0.26173916]
[1737039614682,0.2845112,702.96,701.23,0.26173916]
[1737039614883,0.2845112,702.96,701.24,0.26173916]
[1737039615084,0.2845112,702.96,701.25,0.26173916]
[1737039615278,0.2845112,702.96,701.26,0.26173916]
[1737039615486,0.2845112,702.96,701.36,1.06400077]
[1737039615683,0.2845112,702.96,701.37,0.87226407]
[1737039615983,0.2845112,702.96,701.38,0.26173916]
[1737039616178,0.2845112,702.96,701.39,0.26173916]
[1737039616381,0.2845112,702.96,701.36,1.06400077]
[1737039616581,0.2845112,702.96,701.37,1.06400077]
[1737039617180,0.2845112,702.96,701.38,0.26170059]
[1737039617385,0.2845112,702.96,701.39,0.26170059]
[1737039617582,0.2845112,702.96,701.4,0.26170059]
[1737039617782,0.2845112,702.96,701.38,0.61042235]
[1737039617783,0.2845112,702.96,701.41,0.26170059]
[1737039617983,0.2845112,702.96,701.42,0.26170059]
[1737039618187,0.2845112,702.96,701.43,0.26170059]
[1737039618387,0.2845112,702.96,701.44,0.26170059]
[1737039618586,0.2845112,702.96,701.45,0.26170059]
[1737039618787,0.2845112,702.96,701.42,0.26170059]
[1737039618982,0.2845112,702.96,701.43,0.26170059]
[1737039619288,0.2845112,702.96,701.44,0.26170059]
[1737039619484,0.2845112,702.96,701.31,0.87212294]
[1737039619689,0.2845112,702.96,701.32,0.87212294]
[1737039619883,0.2845112,702.96,701.33,0.26170059]
[1737039620189,0.2845112,702.96,701.34,1.32570136]
[1737039620388,0.2845112,702.96,701.35,0.87212294]
[1737039620589,0.2845112,702.96,701.36,0.26170059]
[1737039620790,0.2845112,702.96,701.37,0.26170059]
[1737039621089,0.2845112,702.96,701.38,0.26170059]
[1737039621291,0.2845112,702.96,701.41,1.06400077]
[1737039621490,0.2845112,702.96,701.42,0.26170059]
[1737039622390,0.2845112,702.96,701.43,0.26174232]
[1737039622590,0.2845112,702.96,701.44,0.26174232]
[1737039622791,0.2845112,702.96,701.45,0.26174232]
[1737039622987,0.2845112,702.96,701.22,0.26174232]
[1737039623190,0.2845112,702.96,701.53,1.06400077]
[1737039623393,0.2845112,702.96,701.54,0.87230953]
[1737039623687,0.2845112,702.96,701.55,0.26174232]
[1737039623891,0.2845112,702.96,701.56,0.26174232]
[1737039624092,0.2845112,702.96,701.57,0.26174232]
[1737039624393,0.2845112,702.96,701.54,0.61056721]
[1737039624394,0.2845112,702.96,701.63,1.06400077]
[1737039624593,0.2845112,702.96,701.64,0.26174232]
[1737039624793,0.2845112,702.96,701.65,0.26174232]
[1737039624991,0.2845112,702.96,701.66,0.26164027]
[1737039625192,0.2845112,702.96,701.67,0.26164027]
[1737039625387,0.2845112,702.96,701.68,0.26164027]
[1737039625590,0.2845112,702.96,701.76,1.06400077]
[1737039625793,0.2845112,702.96,701.77,0.87197033]
[1737039626091,0.2845112,702.96,701.78,0.26164027]
[1737039626293,0.2845112,702.96,701.77,0.26164027]
[1737039626493,0.2845112,702.96,701.78,0.26164027]
[1737039626690,0.2845112,702.96,701.81,1.06400077]
[1737039626886,0.2845112,702.96,701.82,0.26164027]
[1737039627286,0.2845112,702.96,701.82,0.87196486]
[1737039627795,0.2845112,702.96,701.83,0.26160841]
[1737039627991,0.2845112,702.96,701.76,0.87192036]
[1737039628196,0.2845112,702.96,701.77,0.26160841]
[1737039628388,0.2845112,702.96,701.76,0.26160841]
[1737039628696,0.2845112,702.96,701.84,1.06400077]
[1737039628899,0.2845112,702.96,701.85,0.26160841]
[1737039630097,0.2845112,702.96,701.86,0.26160841]
[1737039630397,0.2845112,702.96,701.87,0.26160841]
[1737039630696,0.2845112,702.96,701.88,0.26160841]
[1737039630896,0.2845112,702.96,701.89,0.26160841]
[1737039631100,0.2845112,702.96,701.83,0.26160841]
[1737039631398,0.2845112,702.96,701.84,0.26160841]
[1737039631599,0.2845112,702.96,701.85,0.26160841]
[1737039631799,0.2845112,702.96,701.86,0.26160841]
[1737039632000,0.2845112,702.96,701.87,0.26160841]
[1737039632198,0.2845112,702.96,701.88,0.26160841]
[1737039632399,0.2845112,702.96,701.89,0.26160841]
[1737039632600,0.2845112,702.96,701.9,0.26160841]
[1737039632799,0.2845112,702.96,701.91,0.26160841]
[1737039632997,0.2845112,702.96,701.92,0.26160841]
[1737039633201,0.2845112,702.96,701.93,0.26160841]
[1737039633402,0.2845112,702.96,701.6,1.06400077]
[1737039633403,0.2845112,702.96,701.61,0.87208247]
[1737039633603,0.2845112,702.96,701.94,0.26170048]
[1737039633797,0.2845112,702.96,701.62,0.26170048]
[1737039633999,0.2845112,702.96,701.61,0.61049926]
[1737039634000,0.2845112,702.96,701.95,0.26170048]
[1737039634296,0.2845112,702.96,701.96,0.26170048]
[1737039634496,0.2845112,702.96,701.97,0.26170048]
[1737039634703,0.2845112,702.96,701.61,1.06400077]
[1737039634907,0.2845112,702.96,701.62,0.26167988]
[1737039635296,0.2845112,702.96,701.63,0.26169243]
[1737039635499,0.2845112,702.96,701.64,0.26169243]
[1737039635699,0.2845112,702.96,701.65,0.26169243]
[1737039635899,0.2845112,702.96,701.66,0.26169243]
[1737039636202,0.2845112,702.96,701.67,0.26169243]
[1737039636402,0.2845112,702.96,701.53,0.26169243]
[1737039636603,0.2845112,702.96,701.54,0.26169243]
[1737039636903,0.2845112,702.96,701.55,0.26169243]
[1737039637203,0.2845112,702.96,701.56,0.26173311]
[1737039637399,0.2845112,702.96,701.57,0.26173311]
[1737039637603,0.2845112,702.96,701.45,0.26173311]
[1737039637803,0.2845112,702.96,701.46,0.26173311]
[1737039638003,0.2845112,702.96,701.47,0.26173311]
[1737039638206,0.2845112,702.96,700.84,1.27680092]
[1737039638207,0.2845112,702.96,701.48,0.26173311]
[1737039638406,0.2845112,702.96,701.49,0.26173311]
[1737039638603,0.2845112,702.96,701.5,0.26173311]
[1737039638803,0.2845112,702.96,701.51,0.26173311]
[1737039639004,0.2845112,702.96,701.52,0.26173311]
[1737039639205,0.2845112,702.96,701.53,0.26173311]
[1737039639401,1.32680989,702.96,701.54,0.26173311]
[1737039639607,1.32680989,702.96,701.55,0.26173311]
[1737039639805,1.32680989,702.96,701.56,0.26173311]
[1737039640102,1.32680989,702.96,701.57,0.26173311]
[1737039640307,1.32680989,702.96,701.58,0.26173311]
[1737039640507,0.2845112,702.96,701.26,1.06400077]
[1737039640709,0.2845112,702.96,701.27,0.26179962]
[1737039642002,0.2845112,702.96,701.25,0.26179962]
[1737039642208,0.2845112,702.96,701.26,0.54700054]
[1737039642507,0.2845112,702.96,701.27,0.26178244]
[1737039643607,0.2845112,702.96,701.26,0.28520092]
[1737039644104,0.2845112,702.96,701.37,1.06400077]
[1737039645500,0.2845112,702.96,701.38,0.61044807]
[1737039645804,0.2845112,702.96,701.51,1.06400077]
[1737039646308,0.2845112,702.96,701.52,0.8720327]
[1737039646607,0.2845112,702.96,701.53,0.26164568]
[1737039646807,0.2845112,702.96,701.54,0.26164568]
[1737039647008,0.2845112,702.96,701.55,0.26164568]
[1737039647310,0.2845112,702.96,701.67,1.06400077]
[1737039647507,0.2845112,702.96,701.68,0.26164568]
[1737039648508,0.2845112,702.96,701.67,0.26164568]
[1737039648705,0.2845112,702.96,701.68,0.26164568]
[1737039649002,0.2845112,702.96,701.69,0.26164568]
[1737039649207,0.2845112,702.96,701.04,2.17233491]
[1737039649208,0.2845112,702.96,701.67,0.26164568]
[1737039649406,0.2845112,702.96,701.68,0.26164568]
[1737039649605,0.2845112,702.96,701.69,0.26164568]
[1737039649905,0.2845112,702.96,701.7,0.26169032]
[1737039650102,0.2845112,702.96,701.6,0.61047878]
[1737039650309,0.2845112,702.96,701.61,0.26169032]
[1737039651206,0.2845112,702.96,701.6,1.06400077]
[1737039651408,0.2845112,702.96,701.61,0.26177458]
[1737039651809,0.2845112,702.96,701.62,0.26179017]
[1737039652009,0.2845112,702.96,701.35,1.06400077]
[1737039652307,0.2845112,702.96,701.36,0.26179372]
[1737039653308,0.2845112,702.96,701.22,1.06400077]
[1737039653309,0.2845112,702.96,701.37,0.26179372]
[1737039653512,0.2845112,702.96,701.27,0.26179372]
[1737039653711,0.2845112,702.96,701.38,0.26179372]
[1737039653910,0.2845112,702.96,701.28,0.26179372]
[1737039654109,0.2845112,702.96,701.39,0.26181551]
[1737039654305,0.2845112,702.96,701.27,0.26181551]
[1737039654511,0.2845112,702.96,701.4,0.26181551]
[1737039654709,0.2845112,702.96,701.41,0.26181551]
[1737039654906,0.2845112,702.96,701.16,1.06400077]
[1737039655111,0.2845112,702.96,701.27,0.26186361]
[1737039655712,1.04229869,702.94,701.27,0.26186361]
[1737039656312,0.2845112,702.96,701.27,0.26186361]
[1737039656917,0.2845112,702.96,701.28,0.26179592]
[1737039657107,0.2845112,702.96,701.02,1.06400077]
[1737039657108,0.2845112,702.96,701.27,0.26179592]
[1737039657313,0.2845112,702.96,701.28,0.26179592]
[1737039657614,0.2845112,702.96,701.29,0.26179592]
[1737039657813,0.2845112,702.96,701.3,0.26179592]
[1737039658014,0.2845112,702.96,701.31,0.26179592]
[1737039658215,0.2845112,702.96,701.27,0.26179592]
[1737039658414,0.2845112,702.96,701.28,0.26179592]
[1737039658616,0.2845112,702.96,701.28,0.28519279]
[1737039658914,0.2845112,702.96,701.29,0.26179592]
[1737039659707,0.2845112,702.96,701.3,0.26181306]
[1737039659916,0.2845112,702.96,701.28,0.28519279]
[1737039659917,0.2845112,702.96,701.29,0.26181306]
[1737039660214,0.2845112,702.96,701.3,0.26181306]
[1737039660415,0.2845112,702.96,701.31,0.26181306]
[1737039660618,0.2845112,702.96,701.32,0.26181306]
[1737039660915,0.2845112,702.96,701.33,0.26181306]
[1737039661119,0.2845112,702.96,701.29,0.26181306]
[1737039661313,0.2845112,702.96,701.3,0.26181306]
[1737039661617,0.2845112,702.96,701.31,0.26186501]
[1737039661916,0.2845112,702.96,701.32,0.26186501]
[1737039662314,0.2845112,702.96,701.33,0.26187438]
[1737039662515,0.2845112,702.96,701.28,0.28519279]
[1737039662516,1.04229869,702.87,701.29,0.26187438]
[1737039663717,1.04229869,702.93,701.29,0.26187438]
[1737039664419,1.04229869,702.93,701.28,0.28519279]
[1737039664719,1.04229869,702.93,701.29,0.26179872]
[1737039665019,0.2845112,702.96,701.29,0.26179872]
[1737039668018,0.2845112,702.96,701.3,0.26179872]
[1737039668218,0.2845112,702.96,701.31,0.26179872]
[1737039668518,0.2845112,702.96,701.32,0.26179872]
[1737039668819,0.2845112,702.96,701.33,0.26179872]
[1737039669022,0.2845112,702.96,701.34,0.26179872]
[1737039669216,0.2845112,702.96,701.29,0.26179872]
[1737039669521,0.2845112,702.96,701.3,1.32579949]
[1737039669720,0.2845112,702.96,701.31,0.26179872]
[1737039670221,0.2845112,702.96,701.31,0.87247266]
[1737039670422,0.2845112,702.96,701.31,0.26179872]
[1737039670615,0.2845112,702.96,701.32,0.26179182]
[1737039670818,0.2845112,702.96,701.3,1.06400077]
[1737039671218,0.2845112,702.96,701.31,0.26183211]
[1737039671919,0.2845112,702.96,701.32,0.26183211]
[1737039672120,0.2845112,702.96,701.29,0.26183211]
[1737039672423,0.2845112,702.96,701.3,0.26183211]
[1737039672621,0.2845112,702.96,701.28,0.28519279]
[1737039672622,1.04229869,702.83,701.29,0.26183211]
[1737039672822,1.04229869,702.83,701.3,0.26183211]
[1737039673023,1.04229869,702.83,701.28,0.28519279]
[1737039673024,1.04229869,702.83,701.29,0.26183211]
[1737039673222,1.04229869,702.83,701.3,0.26183211]
[1737039673421,1.04229869,702.83,701.29,0.26183211]
[1737039673621,1.04229869,702.87,701.31,0.26183211]
[1737039673820,1.04229869,702.87,701.32,0.26185623]
[1737039674019,1.04229869,702.87,701.29,0.26185623]
[1737039674218,1.04229869,702.87,701.3,0.26185623]
[1737039674424,1.04229869,702.87,701.29,0.26185623]
[1737039674626,1.04229869,702.78,701.3,0.26185623]
[1737039674924,1.04229869,702.78,701.31,0.26185623]
[1737039675126,1.04229869,702.78,701.29,0.26185623]
[1737039676025,1.04229869,702.9,701.29,0.26185623]
[1737039676424,1.04229869,702.9,701.3,0.26185623]
[1737039676625,1.04229869,702.9,701.29,0.61066831]
[1737039676923,1.04229869,702.9,701.3,0.26178222]
[1737039677119,1.04229869,702.9,701.31,0.26178222]
[1737039677323,0.2845112,702.96,701.32,1.32578299]
[1737039677523,0.2845112,702.96,701.33,0.87245053]
[1737039678025,0.2845112,702.96,701.34,0.26178222]
[1737039678222,0.2845112,702.96,701.35,0.26178222]
[1737039678524,0.2845112,702.96,701.33,0.61066831]
[1737039678525,0.2845112,702.96,701.36,0.26178222]
[1737039678725,0.2845112,702.96,701.37,0.26178222]
[1737039678926,0.2845112,702.96,701.33,0.61066831]
[1737039678927,0.2845112,702.96,701.38,0.26178222]
[1737039679126,0.2845112,702.96,701.39,0.26178222]
[1737039679426,0.2845112,702.96,701.4,0.26172792]
[1737039679725,0.2845112,702.96,701.41,0.26172792]
[1737039679927,0.2845112,702.96,701.42,0.26172792]
[1737039680121,0.2845112,702.96,701.43,0.26170791]
[1737039680322,0.2845112,702.96,701.44,0.26170791]
[1737039680522,0.2845112,702.96,701.45,0.26170791]
[1737039680718,0.2845112,702.96,701.46,0.26170791]
[1737039680925,0.2845112,702.96,701.47,1.32570868]
[1737039681121,0.2845112,702.96,701.48,0.87220735]
[1737039681320,0.2845112,702.96,701.49,0.26170791]
[1737039681521,0.2845112,702.96,701.5,0.26170791]
[1737039681725,0.2845112,702.96,701.51,0.26170791]
[1737039681925,0.2845112,702.96,701.52,0.26170791]
[1737039682123,0.2845112,702.96,701.54,0.28508709]
[1737039682325,0.2845112,702.96,701.55,0.87220735]
[1737039682533,0.2845112,702.96,701.75,1.06400077]
[1737039682731,0.2845112,702.96,701.76,0.26170791]
[1737039683529,0.2845112,702.96,701.77,0.26170791]
[1737039683725,0.2845112,702.96,701.78,0.26170791]
[1737039683930,0.2845112,702.96,701.79,0.26170791]
[1737039684134,0.2845112,702.96,701.73,0.26170791]
[1737039684331,0.2845112,702.96,701.74,1.32570868]
[1737039684524,0.2845112,702.96,701.75,0.26170791]
[1737039684727,0.2845112,702.96,701.74,1.06400077]
[1737039685030,0.2845112,702.96,701.75,0.26172363]
[1737039686043,0.2845112,702.96,701.76,0.26172363]
[1737039686225,0.2845112,702.96,701.77,0.26172363]
[1737039686531,0.2845112,702.96,701.54,0.28508709]
[1737039689036,0.2845112,702.96,701.55,0.2617764]
[1737039691233,0.2845112,702.96,701.56,0.26172306]
[1737039691538,0.2845112,702.96,701.57,0.26172306]
[1737039691738,0.2845112,702.96,701.58,0.26172306]
[1737039691939,0.2845112,702.96,701.59,0.26172306]
[1737039692137,0.2845112,702.96,701.6,0.26172306]